Cogmind - Beta 9.2 @@@ ROGUE MODE // 2019.12.15 @ 16:27:15 Player: Fleshy Vegetable Bird Result: Destroyed by as-41967 with Assembled Maul Performance ------------- Evolutions (3) 1500 Regions Visited (10) 2000 Robots Destroyed (86) 430 Value Destroyed (1881) 1881 Prototype IDs (34) 680 Alien Tech Used (0) 0 Bonus (5140) 5140 TOTAL SCORE: 11631 Bonus ------- Follower Combat Kills 825 Aligned with FarCom 300 Met Imprinter 300 Triggered Deep Caves Wall 500 Exposed GOLEM Chamber 4500 Friendly Fire -1285 Cogmind --------- Core Integrity 0/700 Matter 60/300 Energy 85/100 System Corruption 0% Temperature Cool (6) Movement Core (1600) Ox31 Location -7/Deep Caves Parts ------- > --- POWER (1) -------- Zionite Light DM Reactor > --- PROPULSION (4) --- (None) > --- UTILITY (5) ------ Large Storage Unit High-capacity Storage Unit High-capacity Storage Unit Armor Integrity Analyzer > --- WEAPON (3) ------- Phasing Sabre > --- INVENTORY (26) --- Reinforced Deuterium Engine Reinforced Deuterium Engine Compact Matter Pod (150) Advanced Signal Interpreter Makeshift Hacking Suite Makeshift Hacking Suite System Shield Makeshift System Shield Lightning Gun Heavy Laser Peak State ------------ > --- POWER ------------ Zionite Light DM Reactor > --- PROPULSION ------- Improved Treads Improved Treads Armored Treads Medium Treads > --- UTILITY ---------- Large Storage Unit High-capacity Storage Unit High-capacity Storage Unit Zionite Weapon Casing Zionite Light Carapace > --- WEAPON ----------- Zionite Laser-S Zionite Phaser-S Bore Cannon > --- INVENTORY -------- Reinforced Deuterium Engine Reinforced Deuterium Engine Zionite Light DM Reactor Armored Treads Experimental Heat Sink Zionite Biocell Compact Matter Pod Advanced Signal Interpreter Armor Integrity Analyzer Makeshift Hacking Suite Makeshift Hacking Suite System Shield Makeshift System Shield Lightning Gun Heavy Laser Advanced Assault Cannon Proton Missile Launcher Phasing Sabre Deploy-a-Sentry Deploy-a-Sentry Deploy-a-Sentry [Rating: 61] Favorites ----------- Power Light Nuclear Core Engine Ion Engine Power Core Light Nuclear Core Reactor Zionite Light DM Reactor Propulsion Light Treads Treads Light Treads Leg Zionite Composite Leg I Wheel Wheel Utility High-capacity Storage Unit Device Improved Heat Sink Storage High-capacity Storage Unit Processor Makeshift Salvage Targeting Computer Protection Improved Medium Armor Plating Weapon Heavy Assault Rifle Energy Gun Advanced Beam Rifle Energy Cannon Heavy Ion Cannon Ballistic Gun Heavy Assault Rifle Ballistic Cannon Advanced Assault Cannon Launcher Rocket Launcher Slashing Weapon Phasing Sabre Piercing Weapon Spear Build | -11 -10 -10 -10 -9 -8 -7 -7 -7 -7 -7 ------- Run | Scr Mat Min Exi Min Mat Fac Low Low Zio Dee Slots Evolved 6 | . . . . . 4 2 . . . . Power . | . . . . . . . . . . . Propulsion 2 | . . . . . 1 1 . . . . Utility 3 | . . . . . 2 1 . . . . Weapon 1 | . . . . . 1 . . . . . Parts Attached 102 | 9 3 2 3 . 10 13 16 6 12 28 Power 9 | 1 . . 1 . . 3 . 1 1 2 Engine 5 | 1 . . 1 . . 2 . . 1 . Core 2 | . . . . . . 1 . 1 . . Reactor 2 | . . . . . . . . . . 2 Propulsion 28 | 4 1 1 . . 2 4 6 3 2 5 Treads 15 | . . . . . . . 6 3 2 4 Leg 1 | . . . . . . . . . . 1 Wheel 12 | 4 1 1 . . 2 4 . . . . Hover . | . . . . . . . . . . . Flight . | . . . . . . . . . . . Utility 27 | 2 . 1 2 . 2 1 3 . 4 12 Device 4 | . . . . . 1 . . . 1 2 Storage 8 | 2 . 1 2 . 1 . . . . 2 Processor 3 | . . . . . . . . . 2 1 Hackware . | . . . . . . . . . . . Protection 12 | . . . . . . 1 3 . 1 7 Artifact . | . . . . . . . . . . . Weapon 38 | 2 2 . . . 6 5 7 2 5 9 Energy Gun 15 | . . . . . 2 1 5 2 1 4 Energy Cannon 1 | . . . . . . . . . 1 . Ballistic Gun 11 | 2 2 . . . 3 3 1 . . . Ballistic Cannon 3 | . . . . . . . . . 1 2 Launcher 3 | . . . . . 1 . . . . 2 Special Weapon . | . . . . . . . . . . . Impact Weapon . | . . . . . . . . . . . Slashing Weapon 3 | . . . . . . . . . 2 1 Piercing Weapon 2 | . . . . . . 1 1 . . . Special Melee Weapon . | . . . . . . . . . . . Unidentified Prototypes 12 | . . . . . 1 2 . . . 9 Parts Lost 33 | . 1 . . . 1 2 10 1 . 18 Power 2 | . . . . . . 1 . . . 1 Propulsion 10 | . 1 . . . . 1 3 . . 5 Utility 7 | . . . . . . . 2 . . 5 Weapon 14 | . . . . . 1 . 5 1 . 7 Highest Loss Streak 7 | . 1 . . . 1 1 5 1 . 7 Average Slot Usage (%) 96 | . 93 100 100 100 79 94 91 99 99 93 Engine 3 | . 14 14 14 14 9 5 . . . 2 Core 3 | . . . . . . 1 7 7 6 . Treads 18 | . . . . . . . 14 30 30 29 Wheel 9 | . 22 28 28 28 21 26 12 . . . Device 1 | . . . . . 1 7 3 . . . Storage 23 | . 28 28 28 28 19 23 23 23 23 23 Protection 8 | . . . . . . 6 6 15 13 6 Energy Gun 8 | . . . . . 6 7 12 14 9 10 Energy Cannon 1 | . . . . . . . . . 5 2 Ballistic Gun 9 | . 28 28 28 28 20 13 8 7 1 . Slashing Weapon 1 | . . . . . . . . . 3 . Naked Turns . | . . . . . . . . . . . Heaviest Build 115 | 14 17 45 75 75 94 97 103 104 113 115 Greatest Support 94 | 32 20 20 20 20 30 46 80 80 91 94 Greatest Overweight (x) 5 | 2 1 4 4 3 3 3 3 1 1 5 Average Overweight (x) 1 | . . 2 2 3 2 2 2 1 1 1 Largest Inventory Capacity 26 | 8 8 14 20 20 26 26 26 26 26 26 Average Capacity 23 | 6 8 12 18 20 20 26 26 26 26 26 Most Carried 26 | 6 8 12 17 17 20 26 26 26 26 26 Average Carried 22 | 3 7 8 15 17 18 24 25 25 25 24 Final Capacity 26 | 8 8 14 20 20 26 26 26 26 26 26 Final Carried 26 | 4 7 12 17 17 20 25 26 26 25 10 Class Distribution -------------------- 40% | Scavenger-Mutant 19% | Hauler-Mutant 12% | Mutant 9% | Scavenger-Tank 7% | Hauler-Tank 6% | Hauler-Skirmisher Dominant Class ---------------- Mutant | -10/Materials Mutant | -10/Mines Hauler-Mutant | -10/Exiles Hauler-Mutant | -9/Mines Hauler-Skirmisher | -8/Materials Hauler-Mutant | -7/Factory Hauler-Tank | -7/Lower Caves Scavenger-Mutant | -7/Lower Caves Scavenger-Mutant | -7/Zion Hauler-Mutant | -7/Deep Caves Resources | -11 -10 -10 -10 -9 -8 -7 -7 -7 -7 -7 ----------- Run | Scr Mat Min Exi Min Mat Fac Low Low Zio Dee Matter Collected 2172 | 358 118 71 . 84 157 518 381 162 177 146 Remotely . | . . . . . . . . . . . Salvage Created 2941 | 167 146 105 . 252 242 353 640 151 415 470 Parts 140 | 11 20 7 . 14 16 22 25 4 10 11 Haulers Intercepted . | . . . . . . . . . . . Recyclers Shooed 5 | 1 . 1 . . 1 2 . . . . Parts Field Recycled . | . . . . . . . . . . . Retrieved Matter . | . . . . . . . . . . . Parts Self-Destructed 22 | . . . . . . . 16 6 . . Prevented 10 | . . . . . . . 8 2 . . Kills | -11 -10 -10 -10 -9 -8 -7 -7 -7 -7 -7 ------- Run | Scr Mat Min Exi Min Mat Fac Low Low Zio Dee Combat Hostiles Destroyed 57 | . 6 1 . 3 7 4 14 2 5 15 Melee 2 | . . . . . . . . . . 2 Guns 32 | . 6 1 . 3 4 4 11 2 . 1 Cannons 1 | . . . . . . . . . 1 . AOE 18 | . . . . . 3 . 2 . 1 12 Classes Destroyed 17 | 2 3 1 . . 1 2 1 1 3 3 Worker 6 | . 1 1 . 1 . 3 . . . . Tunneler 7 | 5 . 1 . 1 . . . . . . Recycler 4 | 1 . . . 1 1 1 . . . . Minesweeper 1 | . . . . . . . . 1 . . Turret 1 | . . . . . . . . . . 1 Watcher 4 | . 2 . . . . 2 . . . . Swarmer 16 | . 6 1 . . 3 . 6 . . . Grunt 13 | . . 1 . 3 3 . 4 2 . . Brawler 1 | . . . . . . . 1 . . . Sentry 3 | . . . . . . 2 1 . . . Hunter 2 | . . . . . 1 1 . . . . Programmer 1 | . . . . . . 1 . . . . Zionite 3 | . . . . . . . . . 3 . Z-Light 2 | . . . . . . . . . . 2 Assembled 13 | . . . . . . . . . . 13 Thug 1 | . . . . . . . . . 1 . Savage 2 | . . . . . . . 2 . . . Butcher 1 | . . . . . . . . . 1 . Mutant 5 | . . . . . . . . . 5 . Best Kill Streak 12 | 5 8 1 . 3 4 2 6 2 4 12 Combat Bots Only 12 | . 6 1 . 3 4 2 6 2 4 12 Max Kills in Single Turn 4 | 1 1 2 . 1 3 1 2 1 2 4 Gunslinging 1 | . . . . . . . 1 . . . Exploded 4 | . . . . . 3 . 2 . 1 4 Melee 1 | . . . . . . . . . . 1 Uniques/NPCs Destroyed 1 | . . . . . . . . . 1 . Imprinter (-7/Zion) Combat | -11 -10 -10 -10 -9 -8 -7 -7 -7 -7 -7 -------- Run | Scr Mat Min Exi Min Mat Fac Low Low Zio Dee Damage Taken 5882 | . 155 59 . 107 170 558 1447 127 178 3081 Core 811 | . 8 10 . 48 26 51 96 18 13 541 Absorbed by Shields . | . . . . . . . . . . . Core Remaining (%) 89 | 100 . . . 73 95 . . . . . Volleys Fired 215 | 17 18 6 . 9 13 40 48 17 17 30 Largest 3 | 2 2 2 . 2 3 3 3 3 3 3 Hottest 177 | 40 46 46 . 46 91 108 168 108 174 177 Shots Fired 492 | 34 36 12 . 18 27 105 129 37 39 55 Gun 432 | 34 36 12 . 18 22 105 129 37 16 23 Cannon 42 | . . . . . . . . . 23 19 Launcher 18 | . . . . . 5 . . . . 13 Special . | . . . . . . . . . . . Kinetic 260 | 34 36 12 . 18 20 65 45 9 6 15 Thermal 119 | . . . . . 1 40 22 5 33 18 Explosive 11 | . . . . . 5 . . . . 6 Electromagnetic 93 | . . . . . 1 . 62 23 . 7 Phasic 9 | . . . . . . . . . . 9 Robot Hit Streak 23 | 7 4 4 . 6 4 16 23 11 8 5 Robot Miss Streak 7 | 2 4 2 . 1 3 6 7 2 2 4 Penetration Max . | . . . . . . . . . . . Secondary Targets 7 | . 2 . . . 2 . 3 . . . Max Gunslinging Chain 1 | . 1 . . . 1 . 1 . . . Shots Hit Robots 335 | 21 18 6 . 12 19 76 101 24 32 26 Core Hits 206 | 10 9 4 . 6 18 36 46 10 13 54 Critical Hits 4 | . . . . . . . . . 2 2 Critical Kills 2 | . . . . . . . . . 1 1 Critical Parts Destroyed 2 | . . . . . . . . . 1 1 Melee Attacks 21 | . . . . . . 8 . . 11 2 Impact . | . . . . . . . . . . . Slashing 13 | . . . . . . . . . 11 2 Piercing 8 | . . . . . . 8 . . . . Sneak Attacks 6 | . . . . . . 1 . . 5 . Combat Hostiles . | . . . . . . . . . . . Follow-up Attacks . | . . . . . . . . . . . Damage Inflicted 8443 | 217 236 93 . 205 702 1031 1350 367 2026 2216 Guns 4042 | 217 236 93 . 205 172 952 1162 329 220 456 Cannons 603 | . . . . . . . . . 348 255 Explosions 3001 | . . . . . 530 . 188 38 859 1386 Melee 797 | . . . . . . 79 . . 599 119 Ramming . | . . . . . . . . . . . Kinetic 2004 | 217 236 93 . 205 144 394 385 73 55 202 Thermal 1802 | . . . . . 20 558 322 78 513 311 Explosive 1056 | . . . . . 530 . . . . 526 Electromagnetic 2586 | . . . . . 8 . 643 216 859 860 Impact . | . . . . . . . . . . . Slashing 718 | . . . . . . . . . 599 119 Piercing 79 | . . . . . . 79 . . . . Phasic 198 | . . . . . . . . . . 198 Highest Corruption 12 | . 2 2 2 2 . 7 12 12 12 . Average Corruption 7 | . 2 2 2 2 . 6 9 12 12 . Corruption Purged . | . . . . . . . . . . . Effects 155 | . 2 6 7 1 . 10 74 53 2 . Message Errors 31 | . 2 1 2 . . 2 10 14 . . Matter Fused 32 | . . . . . . 1 18 13 . . Heat Flow Errors 18 | . . 2 3 . . 1 4 8 . . Energy Discharges 17 | . . . . . . . 13 4 . . Data Loss (minor) 14 | . . 3 2 1 . . 4 4 . . Data Loss (major) 3 | . . . . . . 1 2 . . . Misfires 6 | . . . . . . . 1 5 . . Alerts 1 | . . . . . . . 1 . . . Misdirections 10 | . . . . . . . 5 3 2 . Targeting Errors 21 | . . . . . . 4 15 2 . . Weapon Failures 2 | . . . . . . 1 1 . . . Overload Shots . | . . . . . . . . . . . Overflow Damage 303 | . . . . . 19 39 7 13 183 42 Projectiles 17 | . . . . . . . . . 9 8 Explosions 171 | . . . . . 19 . 7 13 98 34 Melee 115 | . . . . . . 39 . . 76 . Knockbacks 3 | . . . . . . . . . . 3 Impact . | . . . . . . . . . . . Kinetic 2 | . . . . . . . . . . 2 Secondary 1 | . . . . . . . . . . 1 Self-Inflicted Damage 56 | . . . . . . . 56 . . . Shots 1 | . . . . . . . 1 . . . Rammed . | . . . . . . . . . . . Targets Rammed . | . . . . . . . . . . . Kicked . | . . . . . . . . . . . Crushed . | . . . . . . . . . . . Highest Temperature 657 | . . 198 271 11 12 413 256 293 315 657 Average Temperature 119 | . . 98 128 3 8 143 76 125 95 161 Received Heat Transfer 1051 | . 21 6 . 60 18 66 216 72 33 559 Effects 13 | . . . . . . . . 3 . 10 Energy Bleed 1 | . . . . . . . . 1 . . Interference 5 | . . . . . . . . 2 . 3 Matter Decay 1 | . . . . . . . . . . 1 Short Circuit 1 | . . . . . . . . . . 1 Damage (minor) 2 | . . . . . . . . . . 2 Damage (major) 2 | . . . . . . . . . . 2 Damage (core) 1 | . . . . . . . . . . 1 Siege Activations . | . . . . . . . . . . . Robots Corrupted 4 | . . . . . . . 1 . 3 . Combat Hostiles 4 | . . . . . . . 1 . 3 . Parts Fried 5 | . . . . . . . 2 . 2 1 Impact Corruptions . | . . . . . . . . . . . Robots Melted . | . . . . . . . . . . . Combat Hostiles . | . . . . . . . . . . . Parts Melted 3 | . . . . 1 . . . . 2 . Heat Transferred 2690 | . . . . . 37 848 535 124 702 444 Parts Sabotaged . | . . . . . . . . . . . Parts Stolen . | . . . . . . . . . . . Parts Stripped . | . . . . . . . . . . . Power Chain Reactions 5 | . . . . . . . 2 1 . 2 Missiles Intercepted . | . . . . . . . . . . . Alert | -11 -10 -10 -10 -9 -8 -7 -7 -7 -7 -7 ------- Run | Scr Mat Min Exi Min Mat Fac Low Low Zio Dee Peak Influence 278 | 30 191 246 . 89 246 278 . . . . Average Influence 123 | 15 107 121 . 58 202 139 . . . . Maximum Alert Level 1 | . . 1 . . 1 1 . . . . Low Security (%) 80 | 100 100 98 . 100 24 72 . . . . Level 1 19 | . . 1 . . 75 27 . . . . Level 2 . | . . . . . . . . . . . Level 3 . | . . . . . . . . . . . Level 4 . | . . . . . . . . . . . Level 5 . | . . . . . . . . . . . High Security . | . . . . . . . . . . . Max Security . | . . . . . . . . . . . Squads Dispatched 4 | . 1 . . . 1 2 . . . . Investigation 2 | . 1 . . . . 1 . . . . Extermination 1 | . . . . . . 1 . . . . Reinforcement 1 | . . . . . 1 . . . . . Assault . | . . . . . . . . . . . Garrison . | . . . . . . . . . . . Intercept . | . . . . . . . . . . . Construction Impeded . | . . . . . . . . . . . Haulers Reinforced . | . . . . . . . . . . . Stealth | -11 -10 -10 -10 -9 -8 -7 -7 -7 -7 -7 --------- Run | Scr Mat Min Exi Min Mat Fac Low Low Zio Dee Distress Signals 4 | . 1 . . . 1 2 . . . . Communications Jammed . | . . . . . . . . . . . Distress Signals . | . . . . . . . . . . . Times Spotted 153 | . 14 9 . 4 10 13 21 2 24 56 Peak Tracking Total 37 | . 5 3 . 3 4 3 8 2 6 37 Tactical Retreats 6 | . 1 . . . . . 2 . 2 1 Traps | -11 -10 -10 -10 -9 -8 -7 -7 -7 -7 -7 ------- Run | Scr Mat Min Exi Min Mat Fac Low Low Zio Dee Traps Triggered 7 | . 2 . . . . 3 . . 2 . Indirectly 2 | . . . . . . . . . 2 . Trap Hack Attempts . | . . . . . . . . . . . Triggered . | . . . . . . . . . . . Disarmed . | . . . . . . . . . . . Reprogrammed . | . . . . . . . . . . . Reused 1 | . . . . . . . . . 1 . Traps Extracted . | . . . . . . . . . . . Installed 3 | . . . . . . . . . 3 . Triggered . | . . . . . . . . . . . Exploded 1 | . . . . . . . 1 . . . Machines | -11 -10 -10 -10 -9 -8 -7 -7 -7 -7 -7 ---------- Run | Scr Mat Min Exi Min Mat Fac Low Low Zio Dee Machines Disabled 2 | . . . . . . 1 . . . 1 Max in Single Turn 1 | . . . . . . 1 . . . 1 Garrison Access 1 | . . . . . . 1 . . . . Machines Sabotaged . | . . . . . . . . . . . Garrisons Compromised . | . . . . . . . . . . . Overloaded Fab Kills . | . . . . . . . . . . . Fab Network Shutdowns . | . . . . . . . . . . . Hacking | -11 -10 -10 -10 -9 -8 -7 -7 -7 -7 -7 --------- Run | Scr Mat Min Exi Min Mat Fac Low Low Zio Dee Machines Accessed 18 | . 1 . 2 . 4 7 1 2 1 . Terminals 8 | . 1 . . . 2 5 . . . . Fabricators . | . . . . . . . . . . . Repair Stations 2 | . . . . . 1 1 . . . . Recycling Units . | . . . . . . . . . . . Scanalyzers 1 | . . . . . 1 . . . . . Garrison Access 1 | . . . . . . 1 . . . . Total Hacks 66 | . 3 . 24 . 11 16 1 5 6 . Successful 48 | . 1 . 24 . 4 7 1 5 6 . Failed 18 | . 2 . . . 7 9 . . . . Catastrophic 2 | . . . . . 1 1 . . . . Database Lockouts . | . . . . . . . . . . . Manual 25 | . 3 . 1 . 5 11 . . 5 . Terminals 20 | . 3 . . . 5 12 . . . . Fabricators . | . . . . . . . . . . . Repair Stations 5 | . . . . . 3 2 . . . . Recycling Units . | . . . . . . . . . . . Scanalyzers 3 | . . . . . 3 . . . . . Garrison Access 2 | . . . . . . 2 . . . . Terminal Hacks 38 | . 1 . 24 . . 1 1 5 6 . Record 27 | . . . 23 . . . . 4 . . Part Schematic 6 | . . . . . . . . . 6 . Open Door 2 | . . . . . . . 1 1 . . Branch Access Points 2 | . 1 . . . . 1 . . . . EX-Prototype ID Bank 1 | . . . 1 . . . . . . . Fabricator Hacks . | . . . . . . . . . . . Repair Station Hacks 2 | . . . . . 2 . . . . . Scan Component 1 | . . . . . 1 . . . . . Repair 1 | . . . . . 1 . . . . . Recycling Unit Hacks . | . . . . . . . . . . . Scanalyzer 2 | . . . . . 2 . . . . . Insert Component 1 | . . . . . 1 . . . . . Analyze 1 | . . . . . 1 . . . . . Garrison Access Hacks 1 | . . . . . . 1 . . . . Seal Access 1 | . . . . . . 1 . . . . Unauthorized Hacks 16 | . . . . . 2 14 . . . . Terminals 5 | . . . . . . 5 . . . . Botnet 5 | . . . . . . 5 . . . . Fabricators . | . . . . . . . . . . . Repair Stations . | . . . . . . . . . . . Recycling Units . | . . . . . . . . . . . Scanalyzers . | . . . . . . . . . . . Garrison Access . | . . . . . . . . . . . Data Cores Recovered . | . . . . . . . . . . . Used . | . . . . . . . . . . . Hacking Detections 12 | . 1 . . . 4 7 . . . . Full Trace Events . | . . . . . . . . . . . Feedback Events . | . . . . . . . . . . . Feedback Blocked . | . . . . . . . . . . . Robot Schematics Acquired . | . . . . . . . . . . . Robots Built . | . . . . . . . . . . . Matter . | . . . . . . . . . . . Time . | . . . . . . . . . . . Total Robot Build Rating . | . . . . . . . . . . . Part Schematics Acquired 7 | . . . . . 1 . . . 6 . Parts Built . | . . . . . . . . . . . Matter . | . . . . . . . . . . . Time . | . . . . . . . . . . . Total Part Build Rating . | . . . . . . . . . . . Parts Repaired 1 | . . . . . 1 . . . . . Time 26 | . . . . . 26 . . . . . Parts Recycled . | . . . . . . . . . . . Recycled Matter . | . . . . . . . . . . . Retrieved Matter . | . . . . . . . . . . . Retrieved Components . | . . . . . . . . . . . Parts Scanalyzed 1 | . . . . . 1 . . . . . Part Schematics Acquired 1 | . . . . . 1 . . . . . Parts Damaged . | . . . . . . . . . . . Bothacking | -11 -10 -10 -10 -9 -8 -7 -7 -7 -7 -7 ------------ Run | Scr Mat Min Exi Min Mat Fac Low Low Zio Dee Used RIF Installer . | . . . . . . . . . . . Robots Hacked . | . . . . . . . . . . . Non-combat . | . . . . . . . . . . . Combat . | . . . . . . . . . . . Robot Hacks Applied . | . . . . . . . . . . . Relay Couplers Released . | . . . . . . . . . . . Robots Rewired 2 | . . . . . . . 2 . . . Allies Hacked . | . . . . . . . . . . . Hacks Repelled . | . . . . . . . . . . . Allies | -11 -10 -10 -10 -9 -8 -7 -7 -7 -7 -7 -------- Run | Scr Mat Min Exi Min Mat Fac Low Low Zio Dee Total Allies 10 | . . 3 . . . . 2 . 5 . Largest Group 3 | . . 3 1 1 1 . 2 . 3 2 Highest-Rated Group 211 | . . 40 16 16 16 . 45 . 211 183 Highest-Rated Ally 94 | . . 16 16 16 16 . 25 . 94 94 Total Orders . | . . . . . . . . . . . Ally Attacks 228 | . . 20 . 10 8 . 5 . 83 102 Total Damage 7536 | . . 244 . 126 45 . 197 . 2874 4050 Kills 60 | . . 10 . 1 1 . 1 . 20 27 Allies Corrupted . | . . . . . . . . . . . Allies Melted . | . . . . . . . . . . . Turrets Deployed 3 | . . . . . . . . . . 3 Intel | -11 -10 -10 -10 -9 -8 -7 -7 -7 -7 -7 ------- Run | Scr Mat Min Exi Min Mat Fac Low Low Zio Dee Robot Analysis Total . | . . . . . . . . . . . Derelict Logs Recovered 8 | . . 2 . 1 . . 3 1 1 . Drone Launches . | . . . . . . . . . . . Drone Recoveries . | . . . . . . . . . . . Exploration | -11 -10 -10 -10 -9 -8 -7 -7 -7 -7 -7 ------------- Run | Scr Mat Min Exi Min Mat Fac Low Low Zio Dee Turns Passed 9441 | 145 206 715 338 304 334 874 1496 1162 2538 1329 Spaces Moved 5607 | 86 170 597 291 190 246 573 883 600 1333 638 Core 22 | 22 . . . . . . . . . . Treads 2893 | . . . . . . . 322 600 1333 638 Legs . | . . . . . . . . . . . Wheels 2692 | 64 170 597 291 190 246 573 561 . . . Hover . | . . . . . . . . . . . Flight . | . . . . . . . . . . . Fastest Speed 50 | 50 80 80 100 110 100 105 105 180 180 180 Average Speed 145 | 86 83 107 108 110 106 107 141 180 180 181 Slowest Speed 270 | 150 90 120 120 110 110 120 200 180 180 270 Overloaded Moves . | . . . . . . . . . . . Propulsion Burnouts . | . . . . . . . . . . . Robots Hopped . | . . . . . . . . . . . Cave-ins Triggered . | . . . . . . . . . . . Exploration Rate (%) 55 | 4 39 94 66 49 29 16 80 65 87 82 Regions Visited 10 Branch Regions 7 Pre-discovered Areas 2 | . . . 1 . . . . . 1 . Known Exits Taken 2 | . 1 . . . . 1 . . . . Unknown Exits Taken 8 | 1 . 1 1 1 1 . 1 1 1 . Scrap Searched 12 | . . 2 . . . . 2 4 4 . Spaces Dug 6 | . . . . . . 4 . . . 2 Terrain Destroyed 85 | . . . . . 31 4 9 4 . 37 Melee 4 | . . . . . . 4 . . . . Projectile 5 | . . . . . . . . . . 5 AOE 76 | . . . . . 31 . 9 4 . 32 Actions | -11 -10 -10 -10 -9 -8 -7 -7 -7 -7 -7 --------- Run | Scr Mat Min Exi Min Mat Fac Low Low Zio Dee Total 6468 | 126 198 661 314 267 296 740 1023 655 1426 762 Wait 287 | . . 48 4 69 11 82 17 18 14 24 Move 5597 | 85 169 596 290 189 245 572 882 599 1332 638 Hop . | . . . . . . . . . . . Pick Up 129 | 13 6 7 11 . 13 17 18 8 18 18 Fast Attach . | . . . . . . . . . . . Attach 54 | 7 1 . . . 7 6 11 1 3 18 Detach 1 | . . . . . . . . . . 1 Swap 48 | 2 2 2 3 . 3 7 5 5 9 10 Drop 78 | 2 2 2 6 . 4 8 7 7 19 21 Fire 215 | 17 18 6 . 9 13 40 48 17 17 30 Melee 21 | . . . . . . 8 . . 11 2 Ram . | . . . . . . . . . . . Kick . | . . . . . . . . . . . Crush . | . . . . . . . . . . . Escape Stasis . | . . . . . . . . . . . Rewire 35 | . . . . . . . 35 . . . Trap 3 | . . . . . . . . . 3 . Miscellaneous . | . . . . . . . . . . . Route ------- -11/Scrapyard -10/Materials (discovered 3 exits: [*Mat] / *Min x2) -10/Mines (discovered 3 exits: [*Mat x2] / *Exi) -10/Exiles -9/Mines -8/Materials -7/Factory (discovered 2 exits: *Low x2) -7/Lower Caves -7/Lower Caves -7/Zion (discovered 2 exits: [*Dee] / [*Pro]) -7/Deep Caves (discovered 1 exit: [*Pro]) History --------- Turn | Location | Event 11 | -11/Scrapyard | Discovered new exit (range 15) 146 | -11/Scrapyard | Entered Materials 153 | -10/Materials | Identified exit to Mines 312 | -10/Materials | Build established: Mutant 330 | -10/Materials | Discovered new exit (range 15) 352 | -10/Materials | Entered Mines 352 | -10/Mines | Assisted by bots powering up and referring to "LRC-V3" 483 | -10/Mines | Discovered new exit (range 8) 492 | -10/Mines | Learned Materials stockpile data 557 | -10/Mines | Discovered new exit (range 7) 607 | -10/Mines | Deemed a non-threat by the Exiles lab entrance 607 | -10/Mines | Discovered new exit (range 5) 836 | -10/Mines | Received a Rocket Launcher from a helpful Derelict 1067 | -10/Mines | Entered Exiles 1067 | -10/Exiles | Accompanied by 1 ally 1105 | -10/Exiles | Met 8R-AWN 1121 | -10/Exiles | Met EX-HEX 1214 | -10/Exiles | Met EX-BIN 1227 | -10/Exiles | Aligned with FarCom system 1228 | -10/Exiles | Given EX-Vault access code 1256 | -10/Exiles | Opened EX-Vault 1265 | -10/Exiles | Found AWS/Gauss 1267 | -10/Exiles | Found Deploy-a-Sentry 1269 | -10/Exiles | Found Deploy-a-Sentry 1271 | -10/Exiles | Found Deploy-a-Sentry 1293 | -10/Exiles | Warned to stay clear of 0b10 Research branches 1305 | -10/Exiles | Exiles lab attacked by MAIN.C 1332 | -10/Exiles | Learned location of Zion (-7) 1388 | -10/Exiles | Discovered new exit (range 14) 1405 | -10/Exiles | Left Exiles lab with Deploy-a-Sentry 1405 | -10/Exiles | Entered Mines 1405 | -9/Mines | Accompanied by 1 ally 1467 | -9/Mines | Build established: Hauler-Mutant 1553 | -9/Mines | Assembled infested the area 1558 | -9/Mines | Assisted by a Guerilla fighting off Assembled 1610 | -9/Mines | Learned Materials machine intel 1617 | -9/Mines | Discovered new exit (range 16) 1709 | -9/Mines | Entered Materials 1709 | -8/Materials | Accompanied by 1 ally 1709 | -8/Materials | Evolved 4 slots: Propulsion x1, Utility x2, Weapon x1 1711 | -8/Materials | Loaded intel: 42 machine locations 1882 | -8/Materials | Discovered new exit (range 13) 1935 | -8/Materials | Repaired Wheel 2013 | -8/Materials | Build established: Hauler-Skirmisher 2043 | -8/Materials | Entered Factory 2043 | -7/Factory | Evolved 2 slots: Propulsion x1, Utility x1 2712 | -7/Factory | Identified exit to Lower Caves 2917 | -7/Factory | Entered Lower Caves 3451 | -7/Lower Caves | Lost 5 parts (1n1u3w) 3497 | -7/Lower Caves | Learned location of 1 exit from Factory 3632 | -7/Lower Caves | Attracted the attention of an 0b10 checkpoint 3651 | -7/Lower Caves | Attacked by a faux Warlord 3660 | -7/Lower Caves | System corruption reached 10% 3906 | -7/Lower Caves | Build established: Hauler-Tank 4297 | -7/Lower Caves | Learned Factory stockpile data 4388 | -7/Lower Caves | Discovered new exit (range 7) 4413 | -7/Lower Caves | Entered another Lower Caves area 4560 | -7/Lower Caves | Learned location of 2 exits from Factory 4596 | -7/Lower Caves | Learned Armory security intel 4654 | -7/Lower Caves | Build established: Scavenger-Tank 5059 | -7/Lower Caves | Build established: Scavenger-Mutant 5492 | -7/Lower Caves | Discovered new exit (range 5) 5575 | -7/Lower Caves | Entered Zion 5633 | -7/Zion | System corruption cleaned by Quarantine Array 5692 | -7/Zion | Discovered new exit (range 11) 5896 | -7/Zion | Learned 12 Factory zone layouts 6000 | -7/Zion | Gained Derelict followers 6390 | -7/Zion | Learned location of Warlord (-5) 6471 | -7/Zion | Given A8's code to call for help 7389 | -7/Zion | Enhanced Grunt warped into view, answering call for help 7390 | -7/Zion | Enhanced Grunt warped into view, answering call for help 7579 | -7/Zion | Rebuked by Imprinter 7619 | -7/Zion | Attacked by Zionites 7639 | -7/Zion | Allies destroyed Imprinter 7651 | -7/Zion | Extracted access codes from Imprinter's data core 8036 | -7/Zion | Opened final containment barrier to the Deep Caves 8103 | -7/Zion | Discovered new exit (range 3) 8103 | -7/Zion | Saw the warning signs outside the Deep Caves entrance 8113 | -7/Zion | Entered Deep Caves 8113 | -7/Deep Caves | Accompanied by 2 allies 8474 | -7/Deep Caves | Z-Facility disabled 8520 | -7/Deep Caves | Found Prototype Protection 8521 | -7/Deep Caves | Identified Zio. Weapon Casing 8566 | -7/Deep Caves | Found Prototype Protection 8568 | -7/Deep Caves | Identified Zio. Heavy Carapace 8862 | -7/Deep Caves | Build established: Hauler-Mutant 9066 | -7/Deep Caves | Discovered new exit (range 6) 9307 | -7/Deep Caves | Spotted as-73179 9322 | -7/Deep Caves | DAS Turret deployed 9341 | -7/Deep Caves | Exposed GOLEM chamber 9343 | -7/Deep Caves | Lost 3 parts (1u2w) 9356 | -7/Deep Caves | Core integrity fell below 50% 9359 | -7/Deep Caves | DAS Turret deployed 9365 | -7/Deep Caves | DAS Turret deployed 9392 | -7/Deep Caves | Allies destroyed as-73179 9408 | -7/Deep Caves | Triggered Deep Caves wall 9412 | -7/Deep Caves | Lost 7 parts (2n3u2w) 9434 | -7/Deep Caves | Core integrity fell below 20% 9442 | -7/Deep Caves | Destroyed by as-41967 with Assembled Maul Last Messages --------------- 09430_ as-11735 IFF system glitched. 09430_ as-74056 suffers critical hit. 09430_ as-74056 destroyed. 09430_ Arm. Treads destroyed. 09430_ as-97945 destroyed. 09431_ as-88867 destroyed. 09432_ Arm. Treads destroyed. 09432_ Zio. Biocell destroyed. 09434_ Proton Missile Launcher destroyed. 09434_ Adv. Assault Cannon destroyed. 09435_ GOLEM Unit springs to life. 09436_ as-99046 GOLEM Unit beginning Prototype Leg integration. 09436_ as-61397 destroyed. 09437_ GOLEM Unit springs to life. 09437_ as-03118 destroyed. 09438_ as-17517 GOLEM Unit beginning Prototype Leg integration. 09438_ as-55624 destroyed. 09438_ Zio. Light DM Reactor destroyed. 09439_ Destroyed Asb. Rifle. 09441_ as-38532 destroyed. Map ----- +----------------------------------------------------+ | ?????????????????????????????# | | ?????????????????????????????## | | ??????????????????????????????#### # | | ?????????????????????????????????#### | | ????????????????????????????????????? | | ????????????????????????????????????? | | ???????? % ?????? ????????????? | | ????????% ?? ??????????? | | ???????? ##???????? | | ???????? * M #? #??? | | ???????? * #? #??? | | ???????? = #? #??? | | ????????# = * #? #??? | | ???????""G * #?# #??? | | ??????#"G g #?# ##?? | | ??????#G" a #?# ### | | ???????"Ga aa = b ### | | ???????"G a = = * ## | | ????????# == = * ;# | | ????????" ## # | | ????????" = ## # | | ????????" a a == l | | ????????""" == ! | | ????????" aa %* !%! | | ????????"" %%a ] !=! ## | | ????????" @ a =% "## | | ????????"" % ##?# | | ????????" t# # #??# | | ????????" ###;t## ## ##??## | | ????????""" ###?##]## ####????#### | | ?????????" ????###? ???????????## | | ?????????######????????#????????????? | | | | | | | | | | | | | | | | | | | | | | | | | | | | | | | | | | | | | +----------------------------------------------------+ Best States ------------- Heat Dissipation 60 Energy Generation 27 Energy Capacity 1290 Matter Stores 300 Matter Capacity 300 Sight Range 16 Terrain Scan Density 10 Armor Coverage 1200 Resistance: KI 10 Weapon Shielding 100 Evasion (%) 50 Armor Integrity Analysis 33 Recoil Reduction 4 Salvage Targeting 4 Item Schematics ----------------- Rnf. Deuterium Engine | -8/Materials | Scanalyzed Beamcaster | -7/Zion | Free Riot Gun | -7/Zion | Free Battle Cannon | -7/Zion | Free Slug Cannon | -7/Zion | Free Flamer | -7/Zion | Free Ripper | -7/Zion | Free Robot Schematics ------------------ None Fabricated ------------ Nothing Alien Tech Used ----------------- None Achievements -------------- None Challenges ------------ None Game ------ Seed BackupWeldingChronowheel Manual? 0 Play Time 00:57:16 Cumulative 248.0 hours Start 2019.12.15 @ 15:08:49 End 2019.12.15 @ 16:27:15 Sessions 5 Manual Loads 0 Difficulty Rogue Special Mode None Game No. 314 Rogue 314 Adventurer 0 Explorer 0 Win Type - Total 2 Types 1/0/0/1/0/0/0 Lore% 60 Gallery% 81 Achievement% 57 Wizard Run 0 Options --------- ASCII 0 Keyboard 0 Movement Numpad Keybinds 0 Fullscreen 1 Font 16/Terminus Map View 75x55 Tactical HUD 1 Map Filters NONE Filters NONE Steam 1 RUN: a6e32c67-4471-4b53-b7ef-c1b034896e70